bitfinex/quotes_BTCUSD_20240827
["timestamp","ask_amount","ask_price","bid_price","bid_amount"]
[1724772372426,0.4031116,61851.0,61850.0,2.74261482]
[1724772373242,0.3961116,61851.0,61850.0,2.74261482]
[1724772373655,0.3971116,61851.0,61850.0,2.74261482]
[1724772374054,0.3931116,61851.0,61850.0,2.74261482]
[1724772374293,0.3931116,61851.0,61850.0,2.74361482]
[1724772376988,0.3921116,61851.0,61850.0,2.74361482]
[1724772377193,0.3941116,61851.0,61850.0,2.74261482]
[1724772377394,0.5597896,61851.0,61850.0,2.74261482]
[1724772377806,0.5557896,61851.0,61850.0,2.74261482]
[1724772378163,0.4011116,61851.0,61850.0,2.74261482]
[1724772378577,1.2005036,61851.0,61850.0,2.31671482]
[1724772378741,1.5238606,61851.0,61850.0,2.31671482]
[1724772378949,1.2085036,61851.0,61850.0,2.31671482]
[1724772379160,0.8851466,61851.0,61850.0,2.31671482]
[1724772379561,0.4001116,61851.0,61850.0,2.74941482]
[1724772379815,0.3951116,61851.0,61850.0,2.74941482]
[1724772379987,0.5667896,61851.0,61850.0,2.74941482]
[1724772380388,0.8771466,61851.0,61850.0,2.50541482]
[1724772380586,0.8861466,61851.0,61850.0,2.50541482]
[1724772380784,0.8921466,61851.0,61850.0,2.50541482]
[1724772381455,1.24083061,61851.0,61850.0,2.31671482]
[1724772381660,1.97525306,61851.0,61850.0,2.31671482]
[1724772381831,2.29861006,61851.0,61850.0,2.31671482]
[1724772381974,2.32161006,61851.0,61850.0,2.31671482]
[1724772382397,2.39336074,61851.0,61850.0,2.31671482]
[1724772382811,2.38436074,61851.0,61850.0,2.31671482]
[1724772383228,2.39736074,61851.0,61850.0,2.31671482]
[1724772383459,2.47836074,61851.0,61850.0,2.31671482]
[1724772383911,2.55028681,61851.0,61850.0,2.31671482]
[1724772384118,2.53628681,61851.0,61850.0,2.31671482]
[1724772384329,2.44592927,61851.0,61850.0,2.31671482]
[1724772384564,2.56554142,61851.0,61850.0,2.31671482]
[1724772385204,2.55154142,61851.0,61850.0,2.31671482]
[1724772385427,2.40661006,61851.0,61850.0,2.31671482]
[1724772385636,2.42061006,61851.0,61850.0,2.31671482]
[1724772386258,2.43461006,61851.0,61850.0,2.31671482]
[1724772386478,2.42061006,61851.0,61850.0,2.31671482]
[1724772387114,2.56555218,61851.0,61850.0,2.31671482]
[1724772387350,2.45992864,61851.0,61850.0,2.31671482]
[1724772387555,2.51631775,61851.0,61850.0,2.31671482]
[1724772387975,2.53031775,61851.0,61850.0,2.31671482]
[1724772388191,2.40928305,61851.0,61850.0,2.31671482]
[1724772388387,2.39528305,61851.0,61850.0,2.31671482]
[1724772388611,2.49099074,61851.0,61850.0,2.31671482]
[1724772388826,2.50499074,61851.0,61850.0,2.31671482]
[1724772389229,2.49099074,61851.0,61850.0,2.31671482]
[1724772389432,2.50499074,61851.0,61850.0,2.31671482]
[1724772389928,2.49099074,61851.0,61850.0,2.31671482]
[1724772390106,2.50499074,61851.0,61850.0,2.31671482]
[1724772390325,2.04892605,61851.0,61850.0,2.31671482]
[1724772390527,2.03492605,61851.0,61850.0,2.31671482]
[1724772390749,2.13470173,61851.0,61850.0,2.31671482]
[1724772390932,2.06292605,61851.0,61850.0,2.31671482]
[1724772391387,2.04892605,61851.0,61850.0,2.31671482]
[1724772391622,2.07425564,61851.0,61850.0,2.31671482]
[1724772391834,2.08825564,61851.0,61850.0,2.31671482]
[1724772392264,1.54766366,61851.0,61850.0,2.31671482]
[1724772392492,1.54766293,61851.0,61850.0,2.31671482]
[1724772392709,1.33983319,61851.0,61850.0,2.31671482]
[1724772392927,1.32583319,61851.0,61850.0,2.31671482]
[1724772393360,1.38769748,61851.0,61850.0,2.31671482]
[1724772393580,1.01647619,61851.0,61850.0,2.31671482]
[1724772393874,1.03047619,61851.0,61850.0,2.51341482]
[1724772394091,1.01647619,61851.0,61850.0,2.51341482]
[1724772394544,0.93047619,61851.0,61850.0,2.51341482]
[1724772394763,0.70711919,61851.0,61850.0,2.51341482]
[1724772395235,0.4201116,61851.0,61850.0,2.51341482]
[1724772395682,0.4201116,61851.0,61850.0,2.80821482]
[1724772396566,0.4061116,61851.0,61850.0,2.80821482]
[1724772396921,0.4161116,61851.0,61850.0,2.96818027]
[1724772397132,0.4161116,61851.0,61850.0,3.59795187]
[1724772397306,0.4161116,61851.0,61850.0,3.92131387]
[1724772397514,0.4021116,61851.0,61850.0,4.26215653]
[1724772397719,0.4021116,61851.0,61850.0,3.93879453]
[1724772397969,0.4021116,61851.0,61850.0,4.26215653]
[1724772398185,0.4021116,61851.0,61850.0,4.36215653]
[1724772398186,0.3921116,61851.0,61850.0,4.36215653]
[1724772398398,0.3921116,61851.0,61850.0,4.3763563]
[1724772398847,0.3991116,61851.0,61850.0,3.25982615]
[1724772399063,0.3991116,61851.0,61850.0,3.40402808]
[1724772399281,0.3991116,61851.0,61850.0,3.72739008]
[1724772399685,0.4001116,61851.0,61850.0,3.72939008]
[1724772399893,0.3991116,61851.0,61850.0,3.72743008]
[1724772400146,0.3991116,61851.0,61850.0,4.35891723]
[1724772400378,0.3921116,61851.0,61850.0,4.36091723]
[1724772400607,0.3931116,61851.0,61850.0,4.35991723]
[1724772401061,0.3891116,61851.0,61850.0,4.36191723]
[1724772401281,0.3881116,61851.0,61850.0,4.36091723]
[1724772401891,0.3881116,61851.0,61850.0,3.77542908]
[1724772402095,0.3891116,61851.0,61850.0,3.77642908]
[1724772403222,0.3891116,61851.0,61850.0,3.61474808]
[1724772403399,0.3891116,61851.0,61850.0,3.77642908]
[1724772403540,0.3891116,61851.0,61850.0,4.09979108]
[1724772403946,0.3891116,61851.0,61850.0,4.73127823]
[1724772404157,0.3891116,61851.0,61850.0,4.7487575]
[1724772404326,0.3881116,61851.0,61850.0,4.74775725]
[1724772404660,0.3891116,61851.0,61850.0,4.73127823]
[1724772405271,0.3881116,61851.0,61850.0,4.74775725]
[1724772405464,0.3891116,61851.0,61850.0,5.07211925]
[1724772405689,0.00090421,61868.0,61858.0,0.161658]
[1724772405901,0.47989634,61867.0,61863.0,0.161645]
[1724772406111,0.00090421,61868.0,61864.0,0.60513995]
[1724772406596,0.00090421,61868.0,61864.0,0.44349795]
[1724772407242,0.004,61867.0,61864.0,0.32484195]
[1724772407449,0.00390421,61868.0,61865.0,0.5340363]
[1724772407652,0.00690421,61868.0,61866.0,0.00323226]
[1724772407880,0.00690421,61868.0,61863.0,0.175865]
[1724772407881,0.00690421,61868.0,61863.0,0.01422]
[1724772408094,0.00990421,61868.0,61863.0,0.072422]
[1724772408303,0.00990421,61868.0,61863.0,0.058202]
[1724772408533,0.00690421,61868.0,61864.0,0.4669]
[1724772408754,0.00990421,61868.0,61865.0,0.00323241]
[1724772409017,0.00990421,61868.0,61864.0,0.4669]
[1724772409239,0.00390421,61868.0,61865.0,0.04669]
[1724772409446,0.00990421,61868.0,61866.0,0.001]
[1724772409935,0.00390421,61868.0,61867.0,0.4669]
[1724772410142,0.00990421,61868.0,61867.0,0.51391324]
[1724772410546,0.00690421,61868.0,61867.0,0.22971324]
[1724772410744,0.00090421,61868.0,61867.0,0.22971324]
[1724772410976,0.27440421,61868.0,61860.0,0.1946]
[1724772411185,0.27840421,61868.0,61860.0,0.1946]
[1724772411389,0.28440421,61868.0,61866.0,0.001]
[1724772411592,0.28040421,61868.0,61866.0,0.001]
[1724772411801,0.44203921,61868.0,61866.0,0.001]
[1724772412004,0.28440421,61868.0,61866.0,0.001]
[1724772412235,0.01090421,61868.0,61866.0,0.001]
[1724772412469,0.00690421,61868.0,61866.0,0.001]
[1724772412670,0.00090421,61868.0,61860.0,0.19783276]
[1724772412859,0.00090421,61868.0,61861.0,0.10927416]
[1724772413108,0.00790421,61868.0,61867.0,0.001]
[1724772413311,0.00790421,61868.0,61860.0,0.1946]
[1724772414085,0.00790421,61868.0,61852.0,0.798848]
[1724772414086,0.01190421,61868.0,61852.0,0.798848]
[1724772414261,0.01890421,61868.0,61866.0,0.001]
[1724772414499,0.00090421,61868.0,61858.0,0.16166]
[1724772414699,0.01190421,61868.0,61860.0,0.001]
[1724772415189,0.00790421,61868.0,61860.0,0.001]
[1724772415395,0.00790421,61868.0,61861.0,0.06459555]
[1724772415605,0.01190421,61868.0,61861.0,0.06782813]
[1724772415811,0.01190421,61868.0,61862.0,0.161648]
[1724772416020,0.00490421,61868.0,61863.0,0.16319788]
[1724772416241,0.00490421,61868.0,61864.0,0.07127484]
[1724772416459,0.01090421,61868.0,61865.0,0.161642]
[1724772416669,0.00490421,61868.0,61864.0,0.23124029]
[1724772416873,0.00490421,61868.0,61865.0,0.09424398]
[1724772417079,0.00690421,61868.0,61866.0,0.193]
[1724772417281,0.00090421,61868.0,61866.0,0.1962323]
[1724772417482,0.00690421,61868.0,61866.0,0.1962323]
[1724772417841,0.00090421,61868.0,61866.0,0.1962323]
[1724772418046,0.00490421,61868.0,61866.0,0.1962323]
[1724772418273,0.00490421,61868.0,61864.0,0.36561829]
[1724772418274,0.00490421,61868.0,61864.0,0.01460884]
[1724772418444,0.00090421,61868.0,61864.0,0.01460884]
[1724772418650,0.00090421,61868.0,61858.0,0.341759]
[1724772419027,0.00490421,61868.0,61859.0,0.2777444]
[1724772419297,0.01090421,61868.0,61865.0,0.001]
[1724772419513,0.01090421,61868.0,61859.0,0.4394014]
[1724772419712,0.01690421,61868.0,61859.0,0.4394014]
[1724772419889,0.01690421,61868.0,61860.0,0.11511551]
[1724772420095,0.00490421,61868.0,61860.0,0.11511551]
[1724772420316,0.00090421,61868.0,61861.0,0.00323248]
[1724772420517,0.00490421,61868.0,61861.0,0.16488348]
[1724772420687,0.01090421,61868.0,61861.0,0.16488348]
[1724772420911,0.01090421,61868.0,61862.0,0.10801216]
[1724772421064,0.00690421,61868.0,61865.0,0.161639]
[1724772421277,0.00690421,61868.0,61867.0,0.161637]
[1724772421520,0.01090421,61868.0,61867.0,0.50493461]
[1724772421725,0.01090421,61868.0,61867.0,0.92477219]
[1724772421927,0.00690421,61868.0,61867.0,0.92477219]
[1724772422153,0.01090421,61868.0,61867.0,0.60149819]
[1724772422347,0.01690421,61868.0,61867.0,0.60149819]
[1724772422656,0.01090421,61868.0,61867.0,0.60149819]
[1724772422863,0.00490421,61868.0,61867.0,0.60149819]
[1724772423062,0.01090421,61868.0,61867.0,0.60249819]
[1724772423511,0.00690421,61868.0,61867.0,0.60249819]
[1724772423934,0.01090421,61868.0,61867.0,0.60240391]
[1724772424697,0.01090421,61868.0,61867.0,1.24895191]
[1724772424895,0.01090421,61868.0,61867.0,1.55707706]
[1724772425434,0.01090421,61868.0,61867.0,1.59234203]
[1724772425997,0.00490421,61868.0,61867.0,1.59134203]
[1724772426212,0.00490421,61868.0,61867.0,1.94901603]
[1724772426432,0.00490421,61868.0,61867.0,2.07605678]
[1724772427063,0.00490421,61868.0,61867.0,2.07105678]
[1724772427273,0.00190421,61868.0,61867.0,2.07582462]
[1724772427478,0.00190421,61868.0,61867.0,1.73150987]
[1724772427694,0.00290421,61868.0,61867.0,0.615294]
[1724772427930,0.00290421,61868.0,61867.0,0.747531]
[1724772428136,0.00190421,61868.0,61867.0,0.741531]
[1724772428344,0.00290421,61868.0,61867.0,0.753531]
[1724772428561,0.00190421,61868.0,61867.0,1.06880484]
[1724772428773,0.00090421,61868.0,61867.0,0.29523026]
[1724772428982,0.001,61868.0,61867.0,0.30623026]
[1724772429271,0.002,61868.0,61867.0,0.04526481]
[1724772429469,0.002,61868.0,61867.0,0.09485651]
[1724772429704,0.003,61868.0,61867.0,0.10285651]
[1724772429888,0.001,61868.0,61867.0,0.09485651]
[1724772430258,0.001,61868.0,61867.0,0.4206912]
[1724772430481,0.001,61868.0,61867.0,0.2580542]
[1724772430691,0.001,61868.0,61867.0,1.05109035]
[1724772430849,0.02531616,61879.0,61867.0,1.11205335]
[1724772431060,0.47989634,61878.0,61869.0,0.161631]
[1724772431272,0.161608,61878.0,61870.0,0.01747595]
[1724772431469,0.161608,61878.0,61867.0,0.02578886]
[1724772431741,0.161614,61876.0,61867.0,0.01778886]
[1724772431939,0.2685,61876.0,61868.0,0.0174764]
[1724772432144,0.2685,61874.0,61867.0,0.005]
[1724772432393,0.430119,61874.0,61863.0,0.01768495]
[1724772432568,0.2685,61874.0,61864.0,0.0793753]
[1724772432907,0.2685,61874.0,61865.0,0.01747716]
[1724772433109,0.2685,61874.0,61864.0,0.1793753]
[1724772433308,0.2685,61874.0,61866.0,0.00323241]
[1724772433464,0.2685,61874.0,61865.0,0.06498092]
[1724772433682,0.2685,61874.0,61867.0,0.00323241]
[1724772433822,0.2755,61874.0,61867.0,0.00323241]
[1724772434451,0.2805,61874.0,61868.0,0.15996545]
[1724772434669,0.2805,61874.0,61869.0,0.23804607]
[1724772434897,0.2805,61874.0,61870.0,0.15996545]
[1724772435111,0.2755,61874.0,61870.0,0.15996545]
[1724772435335,0.2805,61874.0,61870.0,0.15996545]
[1724772435571,0.2735,61874.0,61870.0,0.15996545]
[1724772435779,0.2685,61874.0,61870.0,0.20594208]
[1724772435993,0.2755,61874.0,61871.0,0.161625]
[1724772436194,0.2755,61874.0,61870.0,0.20594208]
[1724772436195,0.2735,61874.0,61870.0,0.36756908]
[1724772436451,0.2735,61874.0,61872.0,0.1942]
[1724772436452,0.012,61874.0,61872.0,0.1942]
[1724772436616,0.012,61874.0,61873.0,0.003232]
[1724772436829,0.012,61874.0,61873.0,0.32481845]
[1724772437031,0.01290421,61874.0,61873.0,0.32481845]
[1724772437393,0.00590421,61874.0,61873.0,0.32158645]
[1724772437609,0.00590421,61874.0,61873.0,0.15996545]
[1724772437794,0.00090421,61874.0,61870.0,0.01767678]
[1724772438008,0.00590421,61874.0,61871.0,0.01747576]
[1724772438210,0.00590421,61874.0,61870.0,0.15996545]
[1724772438624,0.00090421,61874.0,61870.0,0.22258671]
[1724772438829,0.00790421,61874.0,61872.0,0.001]
[1724772439060,0.2862,61873.0,61872.0,0.001]
[1724772439265,0.2862,61873.0,61868.0,0.01822918]
[1724772439515,0.2862,61873.0,61870.0,0.001]
[1724772439727,0.2862,61873.0,61866.0,0.11775365]
[1724772439914,0.2862,61873.0,61867.0,0.01747648]
[1724772440121,0.2862,61873.0,61872.0,0.001]
[1724772440326,0.2862,61873.0,61866.0,0.2777191]
[1724772440536,0.2862,61873.0,61867.0,0.10024042]
[1724772440733,0.2902,61873.0,61868.0,0.01747652]
[1724772440948,0.2902,61873.0,61866.0,0.01775365]
[1724772441155,0.161629,61870.0,61866.0,0.01775365]
[1724772441365,0.2821,61869.0,61862.0,0.1]
[1724772441575,0.2821,61869.0,61862.0,0.12979]
[1724772442312,0.2821,61869.0,61862.0,0.02979]
[1724772442491,0.2821,61869.0,61863.0,0.1]
[1724772442725,0.2821,61869.0,61862.0,0.02979]
[1724772443064,0.2851,61869.0,61862.0,0.02979]
[1724772443293,0.2851,61869.0,61863.0,0.01477576]
[1724772443466,0.2851,61869.0,61862.0,0.02979]
[1724772443467,0.161643,61865.0,61861.0,0.01796757]
[1724772443676,0.2821,61864.0,61851.0,0.4755]
[1724772443878,0.2821,61863.0,61857.0,0.01747916]
[1724772444084,0.2821,61863.0,61856.0,0.01895583]
[1724772444085,0.161654,61861.0,61856.0,0.01895583]
[1724772444358,0.448456,61860.0,61856.0,0.000822]
[1724772444755,0.2868,61858.0,61856.0,0.000822]
[1724772446526,0.2908,61858.0,61856.0,0.000822]
[1724772446738,0.2968,61858.0,61856.0,0.000822]
[1724772447403,1.28018441,61857.0,61856.0,0.000822]
[1724772447618,2.12603641,61857.0,61856.0,0.000822]
[1724772447839,2.19798454,61857.0,61856.0,0.000822]
[1724772448048,2.12603641,61857.0,61856.0,0.000822]
[1724772448258,2.1979931,61857.0,61856.0,0.000822]
[1724772448463,2.22331791,61857.0,61856.0,0.000822]
[1724772448692,1.90499191,61857.0,61856.0,0.000822]
[1724772448906,1.83303522,61857.0,61856.0,0.000822]
[1724772449119,1.83403522,61857.0,61856.0,0.000822]
[1724772449360,1.82803522,61857.0,61856.0,0.000822]
[1724772449569,1.83903522,61857.0,61856.0,0.001822]
[1724772449775,1.85203522,61857.0,61856.0,0.001822]
[1724772450227,0.84191481,61857.0,61856.0,0.001822]
[1724772450435,0.53431481,61857.0,61856.0,0.001822]
[1724772450937,0.50899,61857.0,61856.0,0.001822]
[1724772451151,0.50899,61857.0,61856.0,0.07846922]
[1724772451571,0.49799,61857.0,61856.0,0.07746922]
[1724772451777,0.48499,61857.0,61856.0,0.07746922]
[1724772452011,0.48499,61857.0,61856.0,0.07946922]
[1724772452427,0.48499,61857.0,61856.0,0.07746922]
[1724772452844,0.48499,61857.0,61856.0,0.07946922]
[1724772453053,0.48499,61857.0,61856.0,0.0210673]
[1724772453268,0.48499,61857.0,61856.0,0.0190673]
[1724772454684,0.48599,61857.0,61856.0,0.0260673]
[1724772454908,0.48599,61857.0,61856.0,0.0280673]
[1724772455147,0.48599,61857.0,61856.0,0.0210673]
[1724772455373,0.48599,61857.0,61856.0,0.07205933]
[1724772455588,0.48599,61857.0,61856.0,0.0260673]
[1724772455805,0.79529,61857.0,61856.0,0.0240673]
[1724772456005,0.79529,61857.0,61856.0,0.0190673]
[1724772456211,0.79629,61857.0,61856.0,0.0210673]
[1724772456426,0.79629,61857.0,61856.0,0.0260673]
[1724772456840,0.79629,61857.0,61856.0,0.0270673]
[1724772457710,0.79529,61857.0,61856.0,0.0200673]
[1724772457912,0.79529,61857.0,61856.0,0.0220673]
[1724772458384,0.79529,61857.0,61856.0,0.0210673]
[1724772459463,0.79529,61857.0,61856.0,0.0190673]
[1724772459739,0.79929,61857.0,61856.0,0.0190673]
[1724772460838,0.80129,61857.0,61856.0,0.0190673]
[1724772461280,0.99069,61857.0,61856.0,0.0190673]
[1724772461469,0.98869,61857.0,61856.0,0.0190673]
[1724772462388,0.98869,61857.0,61856.0,0.0210673]
[1724772462717,0.98869,61857.0,61856.0,0.002822]
[1724772462922,0.79929,61857.0,61856.0,0.002822]
[1724772463308,0.79929,61857.0,61856.0,0.03454511]
[1724772463530,0.79929,61857.0,61856.0,0.002822]
[1724772463947,0.79929,61857.0,61856.0,0.000822]
[1724772464999,0.79629,61857.0,61856.0,0.000822]
[1724772465333,0.79829,61857.0,61856.0,0.000822]
[1724772465534,0.79529,61857.0,61856.0,0.000822]
[1724772465740,0.79529,61857.0,61856.0,0.002822]
[1724772465943,1.149853,61857.0,61856.0,0.002822]
[1724772466160,2.30512084,61857.0,61856.0,0.002822]
[1724772466383,2.35304258,61857.0,61856.0,0.002822]
[1724772466557,2.65144684,61857.0,61856.0,0.002822]
[1724772466760,0.808392,61851.0,61850.0,2.68611582]
[1724772466961,2.23840445,61851.0,61850.0,2.68611582]
[1724772468965,2.27540445,61851.0,61850.0,2.68611582]
[1724772469177,2.27540445,61851.0,61850.0,2.68711582]
[1724772469178,2.28940445,61851.0,61850.0,2.68711582]
[1724772469547,2.30340445,61851.0,61850.0,2.68711582]
[1724772469940,2.28040445,61851.0,61850.0,2.68711582]
[1724772470440,1.95704745,61851.0,61850.0,2.68711582]
[1724772470642,1.94304745,61851.0,61850.0,2.68611582]
[1724772470783,1.91504745,61851.0,61850.0,2.68611582]
[1724772471190,1.92904745,61851.0,61850.0,2.68611582]
[1724772471607,1.92904745,61851.0,61850.0,2.68711582]
[1724772471815,1.28233345,61851.0,61850.0,2.68711582]
[1724772472082,1.28233345,61851.0,61850.0,2.68611582]
[1724772472083,1.108368,61851.0,61850.0,2.68611582]
[1724772472292,1.121368,61851.0,61850.0,2.68711582]
[1724772473022,1.444725,61851.0,61850.0,2.68711582]
[1724772473219,1.121368,61851.0,61850.0,2.68711582]
[1724772473452,0.97369,61851.0,61850.0,2.68711582]
[1724772473810,0.97369,61851.0,61850.0,2.68611582]
[1724772473811,0.96069,61851.0,61850.0,2.68611582]
[1724772474126,1.134368,61851.0,61850.0,2.68711582]
[1724772474336,0.97269,61851.0,61850.0,2.68711582]
[1724772474710,0.96069,61851.0,61850.0,2.68611582]
[1724772474935,0.95769,61851.0,61850.0,2.68711582]
[1724772475131,0.97169,61851.0,61850.0,2.68711582]
[1724772475969,2.62276145,61851.0,61850.0,2.37671582]
[1724772476213,3.21661845,61851.0,61850.0,1.55191582]
[1724772476381,3.21661845,61851.0,61849.0,1.21666667]
[1724772476382,1.302267,61850.0,61849.0,1.0028356]
[1724772476580,0.161705,61841.0,61840.0,4e-05]
[1724772476798,2.25668683,61841.0,61840.0,4e-05]
[1724772477001,2.9518435,61841.0,61840.0,4e-05]
[1724772477265,2.88017227,61841.0,61840.0,4e-05]
[1724772477498,2.24863712,61841.0,61840.0,4e-05]
[1724772477707,2.2963928,61841.0,61840.0,4e-05]
[1724772477924,2.24863712,61841.0,61840.0,4e-05]
[1724772478068,2.24863712,61841.0,61840.0,0.00104]
[1724772478069,2.31039239,61841.0,61840.0,0.00104]
[1724772478268,2.26263712,61841.0,61840.0,0.00104]
[1724772478693,2.24863712,61841.0,61840.0,4e-05]
[1724772478926,2.26263712,61841.0,61840.0,0.00104]
[1724772479359,2.27663712,61841.0,61840.0,0.00104]
[1724772481245,1.92789045,61841.0,61840.0,0.00104]
[1724772481447,1.95322622,61841.0,61840.0,0.00104]
[1724772481790,1.60681622,61841.0,61840.0,0.00104]
[1724772482157,1.93022622,61841.0,61840.0,0.00104]
[1724772483005,1.95322622,61841.0,61840.0,0.00104]
[1724772485125,1.92789045,61841.0,61840.0,0.00104]
[1724772486972,1.92789045,61841.0,61840.0,0.001862]
[1724772488320,1.95322471,61841.0,61840.0,0.001862]
[1724772490665,2.32438998,61841.0,61840.0,0.001862]
[1724772490889,1.93022471,61841.0,61840.0,0.001862]
[1724772491096,1.90489045,61841.0,61840.0,0.001862]
[1724772491522,1.93022532,61841.0,61840.0,0.001862]
[1724772492197,1.95322532,61841.0,61840.0,0.001862]
[1724772495299,1.95322532,61841.0,61840.0,0.286762]
[1724772495511,1.93022532,61841.0,61840.0,0.286762]
[1724772496415,1.91622532,61841.0,61840.0,0.285762]
[1724772497067,1.93022532,61841.0,61840.0,0.285762]
[1724772497487,1.90489045,61841.0,61840.0,0.000862]
[1724772499026,1.93022455,61841.0,61840.0,0.000862]
[1724772501617,1.83022455,61841.0,61840.0,0.000862]
[1724772502597,0.85999455,61841.0,61840.0,0.000862]
[1724772502803,0.85999455,61841.0,61840.0,0.78698715]
[1724772502804,0.51299,61841.0,61840.0,0.78698715]
[1724772503006,0.51299,61841.0,61840.0,0.78668715]
[1724772503383,0.51299,61841.0,61840.0,0.96592169]
[1724772503757,0.51299,61841.0,61840.0,1.30681931]
[1724772503758,0.31299,61841.0,61840.0,1.30681931]
[1724772503978,0.00090421,61849.0,61840.0,0.91178791]
[1724772504187,0.00090421,61849.0,61848.0,1.27118415]
[1724772504410,0.00090421,61849.0,61848.0,1.39830257]
[1724772504639,0.00090421,61849.0,61848.0,1.07492957]
[1724772504880,0.00090421,61849.0,61848.0,0.91324357]
[1724772505300,0.64764821,61849.0,61848.0,0.478]
[1724772505507,0.48596421,61849.0,61848.0,0.478]
[1724772505957,0.48696421,61849.0,61848.0,0.641686]
[1724772506168,0.48696421,61849.0,61848.0,0.639686]
[1724772506169,0.48596421,61849.0,61848.0,0.639686]
[1724772506370,0.48596421,61849.0,61848.0,0.60511982]
[1724772506585,0.48896421,61849.0,61848.0,1.10821625]
[1724772506796,0.48996421,61849.0,61848.0,1.43158925]
[1724772507211,0.48996421,61849.0,61848.0,1.44716986]
[1724772507427,0.48996421,61849.0,61848.0,1.4296895]
[1724772507641,0.48996421,61849.0,61848.0,1.58965495]
[1724772507875,0.48996421,61849.0,61848.0,2.01302795]
[1724772508116,0.49196421,61849.0,61848.0,2.03050776]
[1724772508352,0.49196421,61849.0,61848.0,2.01302795]
[1724772508548,0.48596421,61849.0,61848.0,2.01302795]
[1724772508766,0.48696421,61849.0,61848.0,2.02302795]
[1724772508978,0.48796421,61849.0,61848.0,2.02402795]
[1724772509186,0.00090421,61857.0,61856.0,1.146227]
[1724772509392,0.00090421,61857.0,61856.0,1.27797845]
[1724772510071,0.00090421,61857.0,61856.0,1.60130945]
[1724772510287,0.00090421,61857.0,61856.0,1.79300945]
[1724772510515,0.00090421,61857.0,61856.0,1.79400945]
[1724772510846,0.00090421,61857.0,61856.0,2.11734045]
[1724772511411,0.00090421,61857.0,61856.0,2.21834045]
[1724772511600,0.00090421,61857.0,61856.0,2.3783059]
[1724772512009,0.00090421,61857.0,61856.0,2.39651858]
[1724772512203,0.00090421,61857.0,61856.0,2.39551858]
[1724772512400,0.00090421,61857.0,61856.0,2.71784958]
[1724772512599,0.00090421,61857.0,61856.0,2.73184958]
[1724772512600,0.00290421,61857.0,61856.0,2.73184958]
[1724772512802,0.00290421,61857.0,61856.0,2.74932617]
[1724772513034,0.00090421,61873.0,61872.0,1.35749515]
[1724772513212,0.00090421,61873.0,61872.0,1.68074215]
[1724772513827,0.00090421,61873.0,61872.0,2.1639546]
[1724772514458,0.00090421,61873.0,61872.0,2.2639546]
[1724772514663,0.00090421,61873.0,61872.0,1.45749515]
[1724772514820,0.00090421,61873.0,61872.0,1.6174606]
[1724772515226,0.00090421,61873.0,61872.0,1.9407076]
[1724772515437,0.00090421,61873.0,61872.0,1.9557076]
[1724772515671,0.69033821,61894.0,61878.0,0.161606]
[1724772515854,0.69033821,61894.0,61876.0,0.323226]
[1724772515855,0.16086966,61894.0,61881.0,0.30812515]
[1724772516079,0.16157,61893.0,61881.0,0.31135679]
[1724772516266,0.16157,61893.0,61880.0,0.3415]
[1724772516267,0.323162,61889.0,61880.0,0.3415]
[1724772516468,0.484744,61889.0,61880.0,0.3415]
[1724772516713,0.161583,61888.0,61880.0,0.3415]
[1724772516920,0.323162,61889.0,61880.0,0.3415]
[1724772517067,0.484792,61882.0,61881.0,0.001]
[1724772517297,0.161597,61882.0,61881.0,0.001]
[1724772517824,0.484792,61882.0,61881.0,0.001]
[1724772518039,0.161597,61882.0,61881.0,0.001]
[1724772518272,0.161597,61882.0,61881.0,0.002]
[1724772518519,0.323177,61886.0,61876.0,0.359]
[1724772518772,0.32155645,61885.0,61876.0,0.359]
[1724772519013,0.001,61882.0,61876.0,0.359]
[1724772519265,0.001,61882.0,61877.0,0.16484076]
[1724772519503,0.001,61882.0,61878.0,0.3694]
[1724772519736,0.003,61888.0,61879.0,0.00323176]
[1724772519978,0.003,61888.0,61880.0,0.3694]
[1724772520232,0.003,61888.0,61881.0,0.00323161]
[1724772520455,0.16247121,61894.0,61882.0,0.3694]
[1724772520757,0.161575,61891.0,61882.0,0.3694]
[1724772520866,0.00090421,61894.0,61883.0,0.0032316]
[1724772521099,0.003,61885.0,61884.0,0.3694]
[1724772521566,0.32404121,61894.0,61884.0,0.3694]
[1724772521567,0.00090421,61894.0,61884.0,0.3694]
[1724772521822,0.004,61885.0,61884.0,0.3694]
[1724772522299,0.161578,61890.0,61884.0,0.3694]
[1724772522524,0.161579,61889.0,61884.0,0.3694]
[1724772522755,0.323151,61891.0,61884.0,0.3694]
[1724772522987,0.161577,61890.0,61884.0,0.3704]
[1724772523248,0.161581,61889.0,61884.0,0.3704]
[1724772523987,0.161581,61889.0,61884.0,0.001]
[1724772524212,0.161583,61888.0,61884.0,0.001]
[1724772524661,0.165578,61890.0,61884.0,0.001]
[1724772524935,0.161579,61889.0,61880.0,0.5511]
[1724772525409,0.003,61890.0,61880.0,0.25478453]
[1724772525656,0.161575,61891.0,61881.0,0.3396]
[1724772525867,0.003,61888.0,61881.0,0.3396]
[1724772526083,0.003,61888.0,61885.0,0.30812515]
[1724772526314,0.002,61889.0,61886.0,0.342]
[1724772526777,0.005,61889.0,61886.0,0.342]
[1724772526997,0.005,61889.0,61888.0,0.3655]
[1724772527217,0.003,61889.0,61888.0,0.3655]
[1724772528132,0.16157,61893.0,61888.0,0.3655]
[1724772528411,0.32404221,61894.0,61888.0,0.3655]
[1724772528412,0.161567,61894.0,61888.0,0.3655]
[1724772528862,0.161567,61894.0,61889.0,0.05513]
[1724772529110,0.161567,61894.0,61888.0,0.3655]
[1724772529111,0.161564,61895.0,61888.0,0.3675]
[1724772529345,0.323116,61898.0,61888.0,0.3655]
[1724772529346,0.005,61891.0,61888.0,0.3655]
[1724772530031,0.161556,61898.0,61888.0,0.3655]
[1724772530258,0.005,61894.0,61888.0,0.3655]
[1724772530515,0.005,61894.0,61892.0,0.3604]
[1724772530735,0.161547,61902.0,61892.0,0.3604]
[1724772531002,0.0253108,61904.0,61892.0,0.3604]
[1724772531003,0.161548,61901.0,61892.0,0.3604]
[1724772531251,0.161548,61901.0,61891.0,0.30812515]
[1724772531252,0.003,61894.0,61893.0,0.09662768]
[1724772531476,0.003,61894.0,61893.0,0.09985885]
[1724772531696,0.0253108,61904.0,61893.0,0.16480017]
[1724772531926,0.003,61902.0,61894.0,0.5685]
[1724772532153,0.161543,61903.0,61895.0,0.00323087]
[1724772532377,0.0253108,61904.0,61895.0,0.00323087]